bitfinex/quotes_SOLUSD_20251202
["timestamp","ask_amount","ask_price","bid_price","bid_amount"]
[1764719008735,7.92,138.94,138.91,7.85856438]
[1764719009221,7.92,138.94,138.92,0.66]
[1764719012215,10.09203408,138.95,138.92,0.66]
[1764719012417,7.92,138.94,138.92,0.66]
[1764719015040,18.01257908,138.94,138.9,0.1]
[1764719015220,2.8951262,138.93,138.91,0.66]
[1764719017250,15.11745288,138.94,138.91,0.66]
[1764719017550,18.01257908,138.94,138.91,0.66]
[1764719018036,10.8151262,138.94,138.91,7.85862457]
[1764719018334,7.92,138.94,138.92,0.66]
[1764719018513,7.92,138.94,138.92,7.85831325]
[1764719018918,7.92,138.94,138.93,0.72]
[1764719019319,7.92,138.94,138.91,7.91869406]
[1764719019736,7.92,138.94,138.92,0.72]
[1764719020134,15.11869406,138.94,138.92,0.72]
[1764719022434,7.92,138.94,138.92,0.72]
[1764719022623,15.11869406,138.94,138.92,0.72]
[1764719023248,25.21118456,138.94,138.92,0.69]
[1764719023946,18.01382026,138.94,138.92,0.69]
[1764719029449,10.8151262,138.94,138.92,0.69]
[1764719029755,18.01382026,138.94,138.92,0.69]
[1764719032347,7.92,138.93,138.92,0.69]
[1764719032943,7.19869406,138.94,138.92,0.69]
[1764719033249,15.11869406,138.94,138.92,0.69]
[1764719033434,7.19869406,138.94,138.92,0.69]
[1764719033637,7.92,138.93,138.92,0.69]
[1764719035157,10.09382026,138.94,138.92,0.69]
[1764719035457,7.92,138.93,138.92,0.69]
[1764719036354,10.09382026,138.94,138.92,0.69]
[1764719036655,7.92,138.93,138.92,0.69]
[1764719037258,10.09382026,138.94,138.92,0.69]
[1764719037463,7.92,138.93,138.92,0.69]
[1764719038150,17.29117963,138.94,138.92,0.69]
[1764719038336,7.92,138.93,138.92,0.69]
[1764719038545,17.29117963,138.94,138.92,0.69]
[1764719039058,7.92,138.93,138.92,0.69]
[1764719040940,7.92,138.93,138.92,7.88838756]
[1764719043762,7.92,138.93,138.92,0.69]
[1764719049557,10.8151262,138.94,138.92,0.69]
[1764719049951,2.8951262,138.94,138.92,0.69]
[1764719050359,10.8151262,138.94,138.92,0.69]
[1764719052066,3.4651262,138.93,138.9,0.77]
[1764719052243,2.8951262,138.92,138.9,0.77]
[1764719052444,2.8951262,138.91,138.9,0.1]
[1764719052753,2.8951262,138.91,138.9,0.77]
[1764719052957,10.8151262,138.91,138.9,0.1]
[1764719054043,10.8151262,138.91,138.9,0.77]
[1764719054244,10.8151262,138.91,138.9,0.1]
[1764719054463,18.58403196,138.91,138.9,0.1]
[1764719054951,25.78509532,138.91,138.9,0.1]
[1764719058464,0.57,138.94,138.9,0.77]
[1764719058657,2.8951262,138.92,138.9,0.77]
[1764719058851,7.92,138.91,138.9,0.77]
[1764719062573,7.92,138.91,138.9,0.1]
[1764719062774,15.11890576,138.91,138.9,0.1]
[1764719064479,15.11890576,138.91,138.9,0.77]
[1764719064661,7.92,138.91,138.9,0.77]
[1764719064862,10.09274779,138.94,138.9,0.77]
[1764719065377,10.8151262,138.93,138.9,0.77]
[1764719067074,10.09655387,138.94,138.9,7.96934737]
[1764719067275,7.92,138.93,138.9,7.96934737]
[1764719067466,7.92,138.93,138.91,0.67]
[1764719070773,23.50588419,138.95,138.91,7.86889299]
[1764719070976,7.92,138.94,138.91,7.86889299]
[1764719071284,7.92,138.94,138.92,0.67]
[1764719072364,7.92,138.94,138.92,7.86826792]
[1764719072893,7.92,138.94,138.93,0.67]
[1764719073894,11.72105109,138.95,138.93,0.67]
[1764719074058,7.92,138.94,138.93,0.67]
[1764719078109,7.19889299,138.96,138.93,7.8678538]
[1764719078392,8.49,138.98,138.94,0.67]
[1764719078582,4.5241295,138.97,138.94,0.67]
[1764719079294,7.19580925,138.97,138.94,0.67]
[1764719079474,11.71993875,138.97,138.94,0.67]
[1764719079790,4.5241295,138.96,138.94,0.67]
[1764719079990,11.71993875,138.97,138.94,0.67]
[1764719080286,7.92,138.97,138.94,7.86727793]
[1764719080793,7.92,138.97,138.95,0.68]
[1764719082872,4.5241295,138.96,138.93,0.67]
[1764719083079,15.11613237,138.97,138.93,0.67]
[1764719083080,4.5241295,138.95,138.93,0.67]
[1764719088208,4.5241295,138.95,138.93,7.86783272]
[1764719088580,4.5241295,138.95,138.93,0.67]
[1764719088774,4.5241295,138.95,138.94,0.67]
[1764719089197,7.19528764,138.98,138.94,0.67]
[1764719089386,12.4441295,138.96,138.94,0.67]
[1764719090808,12.4441295,138.96,138.94,7.86735007]
[1764719090994,12.4441295,138.96,138.94,0.67]
[1764719093802,12.4441295,138.96,138.92,25.19435646]
[1764719093980,4.5241295,138.94,138.9,34.40698082]
[1764719094179,4.5241295,138.95,138.93,0.67]
[1764719096808,21.60994057,138.96,138.93,7.86784559]
[1764719096997,7.92,138.95,138.93,7.86784559]
[1764719097199,7.92,138.95,138.94,0.67]
[1764719097522,7.92,138.96,138.94,0.67]
[1764719097813,12.4441295,138.96,138.94,0.67]
[1764719100090,12.4441295,138.96,138.94,7.86729824]
[1764719100497,4.5241295,138.95,138.92,7.86789173]
[1764719100797,4.5241295,138.95,138.93,0.67]
[1764719103321,15.11638831,138.96,138.93,7.86767605]
[1764719103322,7.92,138.96,138.93,7.86767605]
[1764719103499,12.4441295,138.96,138.94,0.67]
[1764719104515,26.13251355,138.97,138.94,0.67]
[1764719104693,7.92,138.96,138.94,0.67]
[1764719105016,4.5241295,138.95,138.91,18.66678701]
[1764719105204,7.92,138.94,138.91,0.67]
[1764719105403,4.5241295,138.93,138.92,0.67]
[1764719105616,7.92,138.94,138.92,0.67]
[1764719105617,4.5241295,138.94,138.92,0.67]
[1764719105799,7.92,138.94,138.92,0.67]
[1764719106713,7.92,138.94,138.92,7.86808411]
[1764719107215,7.92,138.94,138.93,0.67]
[1764719108115,12.4441295,138.94,138.92,7.19808411]
[1764719108313,12.4441295,138.94,138.92,7.86808411]
[1764719109302,7.92,138.95,138.93,0.67]
[1764719109494,7.92,138.96,138.93,0.67]
[1764719109695,7.92,138.96,138.93,5.1941295]
[1764719109920,4.5241295,138.98,138.93,5.1941295]
[1764719110123,12.4441295,138.97,138.94,0.67]
[1764719110624,7.92,138.97,138.94,0.67]
[1764719110925,4.5241295,138.98,138.94,0.67]
[1764719111103,7.92,138.97,138.95,7.19683339]
[1764719111503,7.92,138.97,138.96,0.67]
[1764719111815,4.5241295,138.98,138.96,0.67]
[1764719112009,7.92,138.98,138.96,0.67]
[1764719112697,133.86976702,139.0,138.96,0.67]
[1764719113020,12.4441295,138.99,138.96,0.67]
[1764719113523,4.5241295,138.98,138.96,7.86612993]
[1764719115501,4.5241295,138.98,138.95,17.99208348]
[1764719115714,21.60527168,139.0,138.97,0.69]
[1764719115915,12.4441295,138.99,138.97,0.69]
[1764719116406,4.5241295,139.0,138.97,0.69]
[1764719116609,7.92,138.99,138.97,0.69]
[1764719117427,7.92,138.99,138.97,7.88551205]
[1764719117831,7.92,138.99,138.98,0.69]
[1764719118131,4.5241295,139.0,138.98,0.69]
[1764719118334,7.92,138.99,138.98,0.69]
[1764719120329,7.92,138.99,138.98,7.88527989]
[1764719120506,8.49,139.02,138.98,7.88527989]
[1764719120702,7.92,139.02,138.99,0.69]
[1764719120908,12.4441295,139.02,138.99,0.69]
[1764719121329,4.5241295,139.0,138.98,8.49]
[1764719121513,7.92,138.99,138.95,0.69]
[1764719121715,4.5241295,138.97,138.95,0.69]
[1764719122227,4.5241295,138.97,138.95,7.88680809]
[1764719122628,28.80063031,138.98,138.95,0.69]
[1764719122823,4.5241295,138.97,138.95,0.69]
[1764719123028,4.5241295,138.96,138.94,7.88711119]
[1764719123333,4.5241295,138.97,138.95,0.69]
[1764719124028,12.4441295,138.97,138.95,0.69]
[1764719124925,12.4441295,138.97,138.96,7.19631548]
[1764719125127,12.4441295,138.97,138.95,7.88660934]
[1764719126822,12.4441295,138.97,138.94,17.99337843]
[1764719127022,12.4441295,138.97,138.96,0.69]
[1764719128343,7.92,138.97,138.96,7.88631548]
[1764719129725,12.4441295,138.97,138.95,7.886588]
[1764719131126,12.4441295,138.97,138.95,0.69]
[1764719131725,12.4441295,138.97,138.95,7.88678086]
[1764719132457,10.81412535,138.97,138.95,7.88678086]
[1764719133431,10.81412535,138.97,138.95,0.69]
[1764719133619,2.89412535,138.96,138.95,0.69]
[1764719134355,10.81412535,138.97,138.95,0.69]
[1764719134648,10.81412535,138.97,138.95,7.88680942]
[1764719135358,2.89412535,138.96,138.95,7.88680942]
[1764719138050,7.92,138.97,138.95,7.88680942]
[1764719138230,10.81412535,138.97,138.95,7.88680942]
[1764719139353,10.81412535,138.97,138.96,0.69]
[1764719140359,10.81412535,138.97,138.93,25.19203423]
[1764719140566,10.81412535,138.97,138.95,0.68]
[1764719143241,2.89412535,138.96,138.95,0.68]
[1764719143441,2.89412535,138.96,138.95,7.87683339]
[1764719143643,2.89412535,138.96,138.95,0.68]
[1764719143869,2.89412535,138.96,138.95,7.87683339]
[1764719144074,10.81412535,138.97,138.95,7.87683339]
[1764719144559,2.89412535,138.96,138.95,7.87683339]
[1764719145555,2.89412535,138.96,138.95,0.68]
[1764719146050,2.89412535,138.96,138.95,7.87683339]
[1764719155669,7.92,138.97,138.95,7.87683339]
[1764719155867,2.89412535,138.96,138.95,7.87683339]
[1764719156247,2.89412535,138.96,138.95,0.68]
[1764719156568,2.89412535,138.96,138.95,7.87683339]
[1764719160848,7.76632117,138.96,138.91,7.88873953]
[1764719161169,2.89412535,138.92,138.9,7.29921242]
[1764719161470,2.89412535,138.91,138.9,0.1]
[1764719163149,2.89412535,138.91,138.9,0.79]
[1764719163351,7.92,138.91,138.9,0.79]
[1764719163570,7.92,138.91,138.9,0.1]
[1764719163774,11.38412535,138.91,138.9,0.1]
[1764719164153,10.81412535,138.91,138.9,0.1]
[1764719165973,18.58303111,138.91,138.9,0.1]
[1764719166149,23.35627106,138.91,138.9,0.1]
[1764719166355,31.24649374,138.91,138.9,0.1]
[1764719167453,26.47325379,138.91,138.9,0.1]
[1764719175589,18.55325379,138.91,138.9,0.1]
[1764719175774,26.47325379,138.91,138.9,0.1]
[1764719176267,7.89022268,138.91,138.9,0.1]
[1764719176469,2.89412535,138.91,138.9,0.78]
[1764719176684,2.89412535,138.92,138.9,0.78]
[1764719176881,7.92,138.91,138.9,0.78]
[1764719178181,11.80407027,138.93,138.9,7.97923763]
[1764719178379,7.92,138.91,138.9,7.97923763]
[1764719178581,7.92,138.91,138.9,7.29923763]
[1764719179093,10.81412535,138.91,138.9,0.78]
[1764719183090,16.308864,138.95,138.9,7.97907393]
[1764719183281,10.81412535,138.94,138.9,7.97907393]
[1764719183587,22.61819562,138.94,138.91,0.71]
[1764719188467,23.18819562,138.94,138.91,0.71]
[1764719188671,23.18819562,138.94,138.9,0.1]
[1764719188672,2.89412535,138.92,138.9,0.1]
[1764719188871,7.92,138.91,138.9,0.81]
[1764719193890,10.81412535,138.91,138.9,0.1]
[1764719194093,7.92,138.91,138.9,0.1]
[1764719194393,7.92,138.91,138.9,0.81]
[1764719194894,11.72618587,138.92,138.9,0.81]
[1764719195092,7.92,138.91,138.9,0.81]
[1764719196999,19.64474905,138.91,138.9,0.1]
[1764719197189,41.29653766,138.91,138.9,0.1]
[1764719197393,48.49803557,138.91,138.9,0.1]
[1764719198502,43.15511096,138.91,138.9,0.1]
[1764719198801,43.72511096,138.91,138.9,0.1]
[1764719198977,43.15511096,138.91,138.9,0.1]
[1764719199177,47.93019236,138.91,138.9,0.1]
[1764719199394,43.15511096,138.91,138.9,0.1]
[1764719199703,43.72511096,138.91,138.9,0.1]
[1764719199900,18.92624696,138.91,138.9,0.1]
[1764719200206,43.15511096,138.91,138.9,0.1]
[1764719200701,35.23511096,138.91,138.9,0.1]
[1764719200902,7.92,138.91,138.9,0.82]
[1764719201398,7.92,138.92,138.9,0.82]
[1764719202287,4.52584329,138.94,138.9,8.01914952]
[1764719202500,7.19971863,138.95,138.9,8.01914952]
[1764719202501,7.92,138.93,138.9,8.01914952]
[1764719202696,7.92,138.93,138.91,0.69]
[1764719204016,7.92,138.93,138.91,7.88880592]
[1764719204503,7.92,138.94,138.92,0.69]
[1764719205411,4.52584329,138.96,138.92,0.69]
[1764719205613,7.92,138.94,138.92,7.88797849]
[1764719205986,7.92,138.94,138.93,0.69]
[1764719208390,7.92,138.94,138.93,7.88786943]
[1764719213403,7.92,138.94,138.93,0.69]
[1764719214428,12.44584329,138.94,138.93,0.69]
[1764719214606,12.44584329,138.94,138.91,0.69]
[1764719216307,12.44584329,138.94,138.91,7.88844464]
[1764719216602,12.44584329,138.94,138.92,0.69]
[1764719219229,12.44584329,138.94,138.92,7.88825256]
[1764719219416,7.92,138.94,138.93,0.69]
[1764719221025,4.52584329,138.96,138.93,0.69]
[1764719221232,7.92,138.95,138.93,7.88760417]
[1764719221623,7.92,138.95,138.94,0.69]
[1764719222125,7.92,138.95,138.93,7.88760417]
[1764719222632,4.52584329,138.96,138.93,7.88760417]
[1764719222832,12.44584329,138.96,138.94,0.69]
[1764719225034,12.44584329,138.96,138.93,7.19760417]
[1764719225214,13.01584329,138.96,138.93,7.88760417]
[1764719225719,4.52584329,138.95,138.93,0.69]
[1764719226728,20.21224805,138.96,138.93,0.69]
[1764719227114,5.09584329,138.95,138.92,0.69]
[1764719227515,4.52584329,138.95,138.92,0.69]
[1764719227710,5.09584329,138.95,138.92,0.69]
[1764719229017,4.52584329,138.95,138.92,0.69]
[1764719229834,4.52584329,138.94,138.92,0.69]
[1764719230144,5.09584329,138.95,138.92,0.69]
[1764719230514,4.52584329,138.95,138.92,0.69]
[1764719231519,13.01584329,138.96,138.92,0.69]
[1764719232443,7.92,138.95,138.93,7.19786943]
[1764719232840,7.92,138.95,138.94,0.71]
[1764719234246,7.92,138.95,138.94,7.90735137]
[1764719238132,7.92,138.95,138.94,0.71]
[1764719240245,7.92,138.95,138.92,25.19377152]
[1764719240544,7.92,138.95,138.93,0.71]
[1764719241555,7.92,138.95,138.93,7.90756527]
[1764719242218,8.49,138.95,138.9,22.62350674]
[1764719242425,8.49,138.95,138.92,0.71]
[1764719242643,12.44584329,138.95,138.92,0.71]
[1764719243337,19.6426866,138.95,138.92,0.71]
[1764719244023,12.44584329,138.95,138.92,0.71]
[1764719245345,4.52584329,138.93,138.9,0.77]
[1764719245743,4.52584329,138.93,138.9,7.96938298]
[1764719246131,4.52584329,138.93,138.91,0.67]
[1764719246330,4.52584329,138.94,138.91,0.67]
[1764719246537,13.01584329,138.95,138.91,0.67]
[1764719248059,13.01584329,138.95,138.91,7.86870144]
[1764719248627,13.01584329,138.95,138.92,0.67]
[1764719253561,13.01584329,138.95,138.92,7.86837374]
[1764719254361,11.38512379,138.95,138.92,7.86837374]
[1764719255758,7.92,138.95,138.93,0.67]
[1764719257035,7.92,138.95,138.93,7.86758508]
[1764719260242,7.92,138.95,138.93,0.67]
[1764719260645,7.92,138.95,138.93,7.86781933]
[1764719264866,7.92,138.95,138.93,0.67]
[1764719265194,7.92,138.95,138.93,7.86778911]
[1764719271376,10.81512379,138.95,138.93,0.67]
[1764719271579,7.92,138.95,138.93,0.67]
[1764719272252,7.92,138.95,138.93,7.86785943]
[1764719275079,7.92,138.95,138.93,0.67]
[1764719275266,4.79223333,138.94,138.93,0.67]
[1764719275578,8.25735712,138.94,138.91,0.67]
[1764719275774,7.68735712,138.93,138.91,0.67]
[1764719275958,7.92,138.92,138.91,0.67]
[1764719276654,12.71284092,138.92,138.91,0.67]
[1764719277276,7.92,138.92,138.91,0.67]
[1764719277865,7.92,138.94,138.91,7.86890576]
[1764719278260,7.92,138.94,138.92,0.67]
[1764719278458,7.92,138.94,138.93,7.19786943]
[1764719278867,12.71237801,138.94,138.93,7.86786943]
[1764719279255,7.92,138.94,138.93,7.86786943]
[1764719280061,2.89512379,138.98,138.93,7.86786943]
[1764719280361,12.71294979,138.97,138.94,0.67]
[1764719280562,4.79294979,138.96,138.94,7.86691964]
[1764719280984,4.79294979,138.96,138.94,7.19691964]
[1764719281194,4.79294979,138.96,138.95,0.67]
[1764719281484,12.71294979,138.96,138.95,0.67]
[1764719281983,7.92,138.96,138.95,0.67]
[1764719283091,7.92,138.96,138.95,7.86683339]
[1764719285482,12.71294517,138.96,138.94,7.19709103]
[1764719285794,7.92,138.96,138.94,7.19709103]
[1764719285981,10.81512379,138.96,138.94,7.86709103]
[1764719287169,10.81512379,138.96,138.94,7.19709103]
[1764719287799,11.38512379,138.96,138.94,7.19709103]
[1764719288509,3.46512379,138.95,138.9,0.77]
[1764719288801,7.68744223,138.94,138.9,7.9692141]
[1764719289025,19.20398779,138.92,138.9,0.1]
[1764719289372,2.89512379,138.91,138.9,0.1]
[1764719290897,10.66402955,138.91,138.9,0.1]
[1764719291098,15.45452853,138.91,138.9,0.1]
[1764719291672,23.32574013,138.91,138.9,0.1]
[1764719291873,32.13568505,138.91,138.9,0.1]
[1764719295415,40.05568505,138.91,138.9,0.1]
[1764719296184,37.16056126,138.91,138.9,0.1]
[1764719296383,40.05568505,138.91,138.9,0.1]
[1764719297910,15.55683437,138.91,138.9,0.1]
[1764719298115,23.5074475,138.92,138.9,0.78]
[1764719298116,2.89512379,138.92,138.9,0.78]
[1764719298409,7.92,138.91,138.9,0.78]
[1764719299993,7.92,138.91,138.9,7.97942404]
[1764719301495,7.92,138.91,138.9,0.78]
[1764719301817,7.92,138.91,138.9,7.97942404]
[1764719304308,7.92,138.91,138.9,0.78]
[1764719304909,7.92,138.91,138.9,7.97942404]
[1764719308614,2.89512379,138.94,138.9,25.97798415]
[1764719308921,7.92,138.93,138.91,7.87864905]
[1764719309297,7.92,138.93,138.92,0.68]
[1764719310234,2.89512379,138.95,138.92,0.68]
[1764719310518,7.67083588,138.95,138.92,0.68]
[1764719310697,7.92,138.94,138.92,0.68]
[1764719310905,34.40742411,138.96,138.93,7.19786943]
[1764719311100,5.99239507,139.02,138.96,16.308864]
[1764719311421,10.09299322,139.04,138.98,2.89512379]
[1764719311622,7.92,139.03,138.99,2.89512379]
[1764719311995,0.2,139.06,139.02,16.308864]
[1764719312212,7.92,139.05,139.01,16.308864]
[1764719312515,10.81512379,139.05,139.02,0.68]
[1764719313210,2.89512379,139.05,139.02,0.68]
[1764719313409,7.92,139.04,139.02,0.68]
[1764719313917,7.92,139.04,139.02,7.87317829]
[1764719314221,7.92,139.04,139.02,0.68]
[1764719314607,8.49,139.04,139.0,0.68]
[1764719314810,2.89512379,139.02,139.0,0.68]
[1764719315206,7.92,139.01,139.0,0.68]
[1764719315399,7.92,139.01,139.0,7.8742446]
[1764719317229,7.92,139.01,139.0,0.68]
[1764719318001,12.43914992,139.01,139.0,0.68]
[1764719318699,7.92,139.01,139.0,0.68]
[1764719319317,7.92,139.01,139.0,7.8742446]
[1764719320330,7.92,139.03,139.0,7.8742446]
[1764719320527,104.7,139.06,139.01,0.67]
[1764719320528,4.51914992,139.04,139.01,0.67]
[1764719320822,7.92,139.03,139.01,0.67]
[1764719321208,4.51914992,139.02,138.97,34.2979604]
[1764719321536,12.43914992,139.03,139.0,0.67]
[1764719323012,7.92,139.02,139.0,0.67]
[1764719323706,4.51914992,139.01,138.98,7.19524823]
[1764719323907,7.92,139.02,138.99,0.71]
[1764719324128,12.43914992,139.02,138.99,0.71]
[1764719325530,12.43914992,139.02,138.99,7.90451267]
[1764719326014,12.43914992,139.02,139.0,0.71]
[1764719327714,12.43914992,139.02,139.0,7.9037731]
[1764719327913,7.92,139.02,139.0,7.9037731]
[1764719328109,7.92,139.02,139.01,0.71]
[1764719330021,7.19205294,139.05,139.01,25.88804473]
[1764719330022,4.51914992,139.05,139.01,25.88804473]
[1764719330225,7.92,139.03,139.01,7.19372706]
[1764719330530,7.92,139.03,139.02,0.71]
[1764719333840,7.92,139.03,139.02,7.90320961]
[1764719335109,4.51914992,139.05,139.02,7.90320961]
[1764719335317,7.92,139.04,139.03,0.71]
[1764719335747,12.43914992,139.04,139.01,0.71]
[1764719335924,12.43914992,139.04,139.02,0.71]
[1764719336329,4.51914992,139.04,139.02,0.71]
[1764719336516,7.92,139.03,139.02,0.71]
[1764719337253,7.92,139.03,139.02,7.90320961]
[1764719339249,12.43914992,139.03,139.0,7.19373351]
[1764719339420,12.43914992,139.03,139.01,0.71]
[1764719339848,12.43914992,139.03,138.99,7.90430777]
[1764719339849,5.08914992,139.02,138.99,7.90430777]
[1764719340024,4.51914992,139.01,138.99,7.90430777]
[1764719340226,7.92,139.0,138.99,7.90430777]
[1764719340451,7.92,139.0,138.99,7.19430777]
[1764719340945,7.92,139.0,138.99,7.90430777]
[1764719345731,7.19221366,139.04,138.99,7.90430777]
[1764719345948,7.92,139.01,139.0,0.71]
[1764719346348,12.43914992,139.01,138.99,7.19430777]
[1764719346531,7.92,139.01,138.99,7.90430777]
[1764719346728,8.49,139.01,138.97,17.018864]
[1764719347051,4.51914992,139.0,138.98,0.71]
[1764719348553,4.51914992,139.0,138.98,7.9049031]
[1764719348936,4.51914992,139.02,138.99,0.71]
[1764719349140,7.92,139.01,138.99,5.22914992]
[1764719349552,7.92,139.01,139.0,0.71]
[1764719350157,7.92,139.01,139.0,7.9042446]
[1764719350554,7.92,139.01,138.98,7.19505426]
[1764719350878,13.00914992,139.01,138.97,24.21441223]
[1764719351046,4.51914992,139.0,138.98,0.71]
[1764719351247,4.51914992,138.99,138.95,0.71]
[1764719351470,12.43914992,138.98,138.95,7.90660154]
[1764719351667,4.51914992,138.97,138.95,0.71]
[1764719352265,4.51914992,138.97,138.94,7.19729005]
[1764719352563,4.51914992,138.97,138.94,7.89729005]
[1764719352742,4.51914992,138.96,138.94,0.7]
[1764719352939,12.43914992,138.95,138.92,18.6951181]
[1764719353161,12.43914992,138.95,138.92,35.0039821]
[1764719353364,12.43914992,138.95,138.93,0.7]
[1764719354077,12.43914992,138.95,138.93,7.89786943]
[1764719354372,12.43914992,138.95,138.93,0.7]
[1764719354573,4.51914992,138.94,138.92,0.7]
[1764719354751,12.43914992,138.95,138.92,0.7]
[1764719355463,0.57,138.94,138.91,7.19890576]
[1764719355774,13.00914992,138.95,138.91,7.89890576]
[1764719356070,5.08914992,138.95,138.91,7.89890576]
[1764719356245,12.43914992,138.94,138.91,7.89890576]
[1764719356443,4.51914992,138.94,138.91,7.89890576]
[1764719356757,7.92,138.93,138.91,7.89890576]
[1764719356964,7.92,138.92,138.91,7.89890576]
[1764719358271,7.92,138.92,138.9,23.6081083]
[1764719358665,7.92,138.92,138.9,24.3081083]
[1764719362154,7.92,138.92,138.91,7.89890576]
[1764719364293,7.76653834,138.96,138.91,7.89890576]
[1764719364294,4.51914992,138.95,138.91,7.89890576]
[1764719364484,7.92,138.94,138.92,0.7]
[1764719364973,7.92,138.93,138.92,0.7]
[1764719366178,4.51914992,138.95,138.92,7.89838756]
[1764719366369,7.92,138.94,138.92,7.89838756]
[1764719366572,7.92,138.94,138.93,0.7]
[1764719368389,7.92,138.94,138.93,7.89786943]
[1764719370969,12.43914992,138.94,138.92,7.89832218]
[1764719371290,7.92,138.94,138.93,0.7]
[1764719371879,12.43914992,138.94,138.91,7.19872965]
[1764719372084,4.51914992,138.93,138.92,0.7]
[1764719372399,5.08914992,138.93,138.9,0.1]
[1764719372702,4.51914992,138.92,138.9,0.1]
[1764719372870,7.92,138.91,138.9,7.29938129]
[1764719373192,7.92,138.91,138.9,7.99938129]
[1764719373701,4.51914992,138.93,138.9,7.99938129]
[1764719374000,7.92,138.91,138.9,7.29938129]
[1764719374506,4.51914992,138.93,138.9,7.99938129]
[1764719374688,7.92,138.91,138.9,0.1]
[1764719375282,7.92,138.91,138.9,0.8]
[1764719376902,7.92,138.91,138.9,7.99942404]
[1764719379977,2.89623213,138.94,138.9,25.99798415]
[1764719380182,7.92,138.93,138.91,0.67]
[1764719380388,2.89623213,138.94,138.91,0.67]
[1764719380592,7.92,138.92,138.91,0.67]
[1764719382189,7.92,138.92,138.91,7.86890576]
[1764719383388,0.57,138.96,138.91,25.86617017]
[1764719383591,10.81623213,138.95,138.92,0.66]
[1764719384619,11.38623213,138.95,138.92,0.66]
[1764719385620,11.38623213,138.95,138.92,7.85823267]
[1764719386437,2.89623213,138.93,138.91,7.19888944]
[1764719386585,7.92,138.92,138.91,7.19888944]
[1764719386786,7.92,138.92,138.91,7.85888944]
[1764719392126,10.81623213,138.92,138.9,0.1]
[1764719392438,10.81623213,138.92,138.9,7.95935123]
[1764719393706,2.89623213,138.91,138.9,0.1]
[1764719394716,11.38623213,138.92,138.9,0.1]
[1764719395114,10.81623213,138.92,138.9,0.1]
[1764719396533,11.38623213,138.92,138.9,0.1]
[1764719397613,2.89623213,138.91,138.9,0.1]
[1764719398635,10.66513789,138.91,138.9,0.1]
[1764719399017,15.47074709,138.91,138.9,0.1]
[1764719400363,8.27184133,138.91,138.9,0.1]
[1764719400527,16.19184133,138.91,138.9,0.1]
[1764719401141,12.7256092,138.91,138.9,0.1]
[1764719401309,15.62184133,138.91,138.9,0.1]
[1764719403948,22.82074709,138.91,138.9,0.1]
[1764719404153,23.39074709,138.91,138.9,0.1]
[1764719404641,15.62184133,138.91,138.9,0.1]
[1764719404944,23.39074709,138.91,138.9,0.1]
[1764719405541,8.27184133,138.91,138.9,0.1]
[1764719405723,16.19184133,138.91,138.9,0.1]
[1764719405929,23.39074709,138.91,138.9,0.1]
[1764719408233,22.82074709,138.91,138.9,0.1]
[1764719410140,23.39074709,138.91,138.9,0.1]
[1764719417244,26.27352608,138.91,138.9,0.1]
[1764719418147,23.39074709,138.91,138.9,0.1]
[1764719418348,26.27352608,138.91,138.9,0.1]
[1764719418749,23.39074709,138.91,138.9,0.1]
[1764719418952,26.27352608,138.91,138.9,0.1]
[1764719423753,23.39074709,138.91,138.9,0.1]
[1764719423952,26.27352608,138.91,138.9,0.1]
[1764719428536,23.39074709,138.91,138.9,0.1]